lending/lending_fUSD_20240131
["ID","MTS","AMOUNT","RATE_DAILY","PERIOD"]
[313064605,1706709233647,-2000.0,0.00022999,2]
[313064606,1706709234182,-482.12405516,0.00022999,2]
[313064607,1706709234208,-1517.87594484,0.00023,2]
[313064608,1706709234875,-2000.0,0.00023,2]
[313064609,1706709235033,-2000.0,0.00023,2]
[313064610,1706709235475,-2000.0,0.00023,2]
[313064611,1706709236011,-2000.0,0.00023,2]
[313064613,1706709236369,-2000.0,0.00023,2]
[313064614,1706709236397,3950.0,0.0002,2]
[313064615,1706709236870,-2000.0,0.00023,2]
[313064616,1706709237617,-2000.0,0.00023,2]
[313064617,1706709238061,-2000.0,0.00023,2]
[313064618,1706709238492,-2000.0,0.00023,2]
[313064619,1706709238928,-2000.0,0.00023,2]
[313064620,1706709239444,-2000.0,0.00023,2]
[313064621,1706709239854,-2000.0,0.00023,2]
[313064623,1706709248113,1000.0,0.000135,2]
[313064624,1706709248267,283.20818867,0.000125,2]
[313064625,1706709250709,-150.0,0.00022999,2]
[313064626,1706709250732,-1710.0,0.00023,2]
[313064627,1706709257261,546.91810675,0.000181,7]
[313064628,1706709260123,235.77746954,0.00022,2]
[313064629,1706709264602,206.08434282,0.0001,2]
[313064630,1706709273249,546.91810675,0.000181,7]
[313064632,1706709291253,546.90066762,0.000181,7]
[313064636,1706709313258,577.81203804,0.000181,7]
[313064638,1706709331279,170.21,0.00028871,120]
[313064640,1706709355564,150.0,0.00022,2]
[313064647,1706709576181,2225.14124004,0.00022,2]
[313064648,1706709587252,2185.31764007,0.0002178,2]
[313064650,1706709589799,500.0,0.00022,2]
[313064651,1706709590867,1029.64734929,0.00022,2]
[313064652,1706709595743,869.84125155,0.00022,4]
[313064653,1706709601039,858.66470521,0.00022,2]
[313064654,1706709602699,403.12005535,0.0002134,2]
[313064656,1706709615010,948.45035289,0.00022,2]
[313064657,1706709624689,403.19810569,0.0002134,2]
[313064658,1706709625665,729.8522769,0.00021,2]
[313064659,1706709625784,500.0,0.00022,2]
[313064660,1706709640691,403.19810569,0.0002134,2]
[313064661,1706709642494,808.63102708,0.00022,2]
[313064662,1706709643571,1972.398252,0.00022434,2]
[313064663,1706709643786,354.00729591,0.00022,2]
[313064665,1706709660696,403.19810569,0.0002134,2]
[313064666,1706709663720,848.83921823,0.00022,2]
[313064667,1706709664313,-3198.37181468,0.00022546,2]
[313064668,1706709664334,-493.04069627,0.00022547,2]
[313064669,1706709664356,-150.0,0.00022548,2]
[313064670,1706709668477,808.18403302,0.00022,2]
[313064672,1706709677712,848.83921823,0.00022,2]
[313064674,1706709678716,403.19810569,0.0002134,2]
[313064675,1706709679401,3198.37181468,0.00022078,2]
[313064676,1706709680222,534.63116618,0.00022,2]
[313064679,1706709688481,808.63102708,0.00022,2]
[313064680,1706709695723,848.83921823,0.00022,2]
[313064681,1706709696247,227.15782808,0.00022,2]
[313064682,1706709700737,402.74084734,0.0002134,2]
[313064683,1706709700836,307.45473556,0.00022078,2]
[313064684,1706709704492,808.63102708,0.00022,2]
[313064685,1706709711722,848.83921823,0.00022,2]
[313064686,1706709717976,161.94812689,0.00020698,2]
[313064687,1706709722492,807.52213624,0.00022,2]
[313064688,1706709722707,403.19810569,0.0002134,2]
[313064689,1706709731464,9332.20980392,0.00021233,2]
[313064690,1706709731723,508.19107691,0.0002134,2]
[313064691,1706709731743,340.64814132,0.0002134,2]
[313064692,1706709738718,403.19810569,0.000207,2]
[313064694,1706709742021,4171.93568487,0.00016005,2]
[313064695,1706709751524,155.14082571,0.00019206,2]
[313064696,1706709751716,848.83921823,0.0002134,2]
[313064697,1706709756017,161.94812689,0.00020698,2]
[313064698,1706709756713,375.48268378,0.000207,2]
[313064699,1706709757307,380.5384412,0.0002134,2]
[313064701,1706709760683,1178.10857982,0.00021848,2]
[313064703,1706709772138,283.92180588,0.0002134,2]
[313064704,1706709773724,419.97808599,0.0002134,2]
[313064705,1706709776043,161.94812689,0.00020698,2]
[313064706,1706709786305,284.99180822,0.0002134,2]
[313064707,1706709795640,732.46979515,0.00021,2]
[313064708,1706709796849,557.94172194,0.00022078,2]
[313064709,1706709800309,284.88299005,0.00020698,2]
[313064710,1706709817646,731.90400743,0.00021,2]
[313064711,1706709836902,1025.76280394,0.00020698,2]
[313064712,1706709842170,260.81174276,0.00020698,2]
[313064713,1706709843071,155.0,0.00020698,2]
[313064714,1706709843300,283.52752235,0.00020698,2]
[313064715,1706709847709,535.20502537,0.00020698,2]
[313064716,1706709848496,808.63102708,0.00020698,2]
[313064717,1706709849815,1036.10780751,0.00020698,2]
[313064718,1706709850199,1122.77547519,0.00020698,2]
[313064719,1706709851625,267.4127316,0.00020698,2]
[313064720,1706709852008,4164.75240448,0.0001575,2]
[313064721,1706709853235,2186.39244281,0.00020491,2]
[313064722,1706709853424,235.47214903,0.00020698,2]
[313064723,1706709855095,5204.41118884,0.00020698,2]
[313064724,1706709858924,5796.35454839,0.00021,2]
[313064725,1706709858944,2246.21849674,0.00021,2]
[313064726,1706709861446,2753.78150326,0.00020895,2]
[313064727,1706709861469,5662.1267808,0.00020895,2]
[313064728,1706709862218,2328.73849707,0.00021,2]
[313064731,1706709984221,2000.0,0.00021,2]
[313064732,1706709984246,225.14124004,0.00021,2]
[313064733,1706709985809,774.85875996,0.00021,2]
[313064734,1706709985832,94.98249159,0.00021,2]
[313064735,1706709989292,2185.31764007,0.0002079,2]
[313064737,1706709991035,948.45035289,0.00021,2]
[313064738,1706709991821,500.0,0.00021,2]
[313064739,1706709992927,1029.64734929,0.00021,2]
[313064740,1706709995099,858.66470521,0.00021,2]
[313064741,1706709995667,729.8522769,0.00021,2]
[313064742,1706709998765,403.19810569,0.0002037,2]
[313064745,1706710013824,500.0,0.00021,2]
[313064746,1706710015428,175.89,0.0002179,2]
[313064747,1706710016764,403.12005535,0.00019759,2]
[313064795,1706710231730,-155.0,0.00022652,2]
[313064796,1706710231741,-2909.36169139,0.00022653,2]
[313064797,1706710231751,-413.22910588,0.00022653,2]
[313064798,1706710231761,-4966.00920273,0.00022653,2]
[313064799,1706710231777,-1490.20934249,0.00022653,2]
[313064800,1706710231786,-3051.43926374,0.00022653,2]
[313064801,1706710231796,-3552.43,0.00022654,2]
[313064802,1706710231806,-3338.37650623,0.00022654,2]
[313064803,1706710231815,-2042.46130528,0.00022654,2]
[313064804,1706710231831,-2133.7056,0.00022654,2]
[313064805,1706710231844,-433.78264,0.00022654,2]
[313064832,1706710234583,-8.80684338,0.00022652,2]
[313064954,1706710237952,-155.0,0.00022651,2]
[313064955,1706710237961,-162.20871198,0.00022651,2]
[313064956,1706710237970,-19.01448346,0.00022651,2]
[313064957,1706710237982,-241.86255393,0.00022651,2]
[313064958,1706710237991,-106.52945507,0.00022651,2]
[313064959,1706710238007,-893.47054493,0.00022651,2]
[313064960,1706710238017,-4.89345152,0.00022652,2]
[313064964,1706710238043,-218.96161972,0.00022652,2]
[313064966,1706710238053,-888.03838028,0.00022653,2]
[313064968,1706710238064,-21299.99999998,0.00022653,2]
[313065078,1706710239213,156.06548771,0.00022651,2]
[313065153,1706710239909,-150.0,0.00022651,2]
[313065194,1706710240250,-93.93451229,0.00022651,2]
[313065196,1706710240259,-5677.66394375,0.00022653,2]
[313065199,1706710240271,-582.73750122,0.00022653,2]
[313065280,1706710241005,-255.913186,0.00022653,2]
[313065360,1706710242766,-1974.0000005,0.00022653,2]
[313065365,1706710242890,-2177.26682898,0.00022653,2]
[313065366,1706710242968,-419.45500102,0.00022653,2]
[313065367,1706710242982,-1138.12541863,0.00022653,2]
[313065380,1706710246797,-245.5740509,0.0002265,2]
[313065381,1706710246806,-415.38902325,0.00022652,2]
[313065382,1706710246816,-132185.45056122,0.00022653,2]
[313065383,1706710247015,-37827.13629328,0.00022653,2]
[313065384,1706710247028,-822.08823982,0.00022653,2]
[313065385,1706710247040,-445.90509709,0.00022653,2]
[313065386,1706710247393,-11579.24899206,0.00022653,2]
[313065387,1706710247654,-252.75249,0.00022653,2]
[313065391,1706710247857,-0.788191,0.00022653,2]
[313065392,1706710250704,-150.0,0.00022651,2]
[313065393,1706710251315,-150.0,0.00022651,2]
[313065394,1706710251796,-85.22896696,0.00022651,2]
[313065395,1706710251820,-64.77103304,0.00022651,2]
[313065396,1706710252597,-150.0,0.00022651,2]
[313065397,1706710253190,-150.0,0.00022651,2]
[313065398,1706710253599,-150.0,0.00022651,2]
[313065399,1706710254482,-150.0,0.00022651,2]
[313065400,1706710255057,-150.0,0.00022651,2]
[313065401,1706710255491,-150.0,0.00022651,2]
[313065402,1706710256070,-150.0,0.00022651,2]
[313065403,1706710256742,-150.0,0.00022651,2]
[313065404,1706710257170,-150.0,0.00022651,2]
[313065405,1706710257636,-150.0,0.00022651,2]
[313065406,1706710258092,-150.0,0.00022651,2]
[313065407,1706710258634,-150.0,0.00022651,2]
[313065408,1706710261389,150.0,0.00019759,2]
[313065409,1706710261409,150.0,0.00019759,2]
[313065410,1706710261431,150.0,0.00019759,2]
[313065411,1706710261452,150.0,0.00019759,2]
[313065412,1706710261472,150.0,0.00019759,2]
[313065413,1706710261493,1906.16414191,0.00019759,2]
[313065428,1706710323661,200.0,0.00021844,2]
[313065445,1706710385270,959.21973051,0.00020697,2]
[313065447,1706710391958,500.0,0.00021844,2]
[313065448,1706710393714,234.8,0.00021844,2]
[313065450,1706710395499,235.32325514,0.00021844,2]
[313065451,1706710396288,763.69,0.00021844,2]
[313065453,1706710401750,500.0,0.00021892,2]
[313065454,1706710401855,1038.64616565,0.00021844,2]
[313065455,1706710405087,5195.8654879,0.00021844,2]
[313065456,1706710407608,362.00852423,0.00021844,2]
[313065457,1706710407722,156.63088575,0.00021844,2]
[313065463,1706710418382,312.8751174,0.00021844,2]
[313065464,1706710419380,2557.79368994,0.00022077,2]
[313065467,1706710423897,732.32661051,0.00021,2]
[313065470,1706710436374,284.9333869,0.00021844,2]
[313065472,1706710444093,163.74,0.00021865,2]
[313065474,1706710449532,162.03710518,0.00020697,2]
[313065479,1706710476221,502.57,0.00021865,2]
[313065481,1706710479540,2000.0,0.00021843,2]
[313065482,1706710481116,224.04406869,0.00022419,2]
[313065483,1706710487026,224.04406869,0.0002242,2]
[313065485,1706710490732,4477.47,0.00021843,2]
[313065490,1706710496320,3000.0,0.00016383,2]
[313065493,1706710512996,3933.1,0.00021924,2]
[313065518,1706710549712,724.28,0.00020006,2]
[313065519,1706710549948,724.28,0.0002227,2]
[313065532,1706710559814,212.92898364,0.00021523,2]
[313065534,1706710562378,183.28,0.00021892,2]
[313065606,1706710646861,3134.76429599,0.00021847,2]
[313065607,1706710648645,548.87,0.00021892,2]
[313065614,1706710660837,8959.827,0.00022413,14]
[313065615,1706710662583,11790.65162388,0.00021924,2]
[313065616,1706710662603,200.0,0.00021924,2]
[313065617,1706710662623,1000.0,0.00021924,2]
[313065618,1706710662644,10909.34837612,0.00021924,2]
[313065621,1706710664818,527.90566707,0.00021847,2]
[313065622,1706710666308,200.0,0.00021924,2]
[313065627,1706710678565,327.54,0.00021924,2]
[313065633,1706710693130,5202.33214498,0.00021892,2]
[313065635,1706710697746,-155.0,0.00022502,2]
[313065636,1706710697769,-525.21369596,0.00022502,2]
[313065637,1706710697790,-43115.03270402,0.00022502,2]
[313065638,1706710697811,-200.0,0.00022503,2]
[313065639,1706710697832,-3635.02589497,0.00022503,2]
[313065640,1706710697852,-3051.43926374,0.00022503,2]
[313065641,1706710697872,-2909.36169139,0.00022503,2]
[313065642,1706710697891,-500.0,0.00022503,2]
[313065643,1706710697913,-2151.72993286,0.00022504,2]
[313065644,1706710697936,-488.49583068,0.00022504,2]
[313065645,1706710697957,-9113.03177176,0.00022505,7]
[313065646,1706710697977,-4648.55054308,0.00022505,2]
[313065647,1706710697998,-5228.78655032,0.00022505,2]
[313065648,1706710698143,800.0,0.00021924,2]
[313065649,1706710698760,1491.64,0.00021924,2]
[313065650,1706710699258,1000.0,0.00022501,2]
[313065652,1706710701883,250.0,0.00022124,2]
[313065653,1706710709879,1040.22432607,0.00021892,2]
[313065657,1706710710868,1460.88883816,0.00021847,7]
[313065662,1706710719468,-818.26403164,0.00022532,2]
[313065663,1706710719490,-157.63,0.00022533,2]
[313065664,1706710719512,-325.0,0.00022624,2]
[313065665,1706710719535,-210.22,0.00022624,2]
[313065666,1706710719557,-157.63,0.00022651,2]
[313065667,1706710719579,-241.77786916,0.00022651,2]
[313065668,1706710719600,-400.0,0.00022651,2]
[313065669,1706710719622,-344.65578857,0.00022651,2]
[313065670,1706710719642,-258.00139996,0.00022651,2]
[313065671,1706710719663,-298.394652,0.00022651,2]
[313065672,1706710719682,-155.44537416,0.00022651,2]
[313065673,1706710719702,-301.18129184,0.00022651,7]
[313065674,1706710719722,-243.09640415,0.00022651,2]
[313065675,1706710719744,-156.44582694,0.00022651,2]
[313065676,1706710719764,-196.75237685,0.00022651,2]
[313065677,1706710719788,-355.22718817,0.00022651,2]
[313065678,1706710719807,-224.14406348,0.00022651,2]
[313065679,1706710719827,-155.0,0.00022651,2]
[313065680,1706710719847,-185.70168369,0.00022651,2]
[313065681,1706710719868,-161.97835975,0.00022651,2]
[313065682,1706710719889,-155.86991614,0.00022651,2]
[313065683,1706710719911,-685.84775104,0.00022651,2]
[313065684,1706710719931,-85812.92259862,0.00022654,2]
[313065685,1706710719952,-2000.0,0.00022654,2]
[313065686,1706710719973,-200.0,0.00022654,2]
[313065687,1706710719994,-3926.46314435,0.00022656,2]
[313065688,1706710720017,-1946.6286781,0.00022759,2]
[313065689,1706710720038,-500.0,0.00022764,2]
[313065690,1706710720058,-220.07533537,0.00022767,2]
[313065691,1706710720079,-265.21514483,0.00022767,2]
[313065692,1706710720101,-157.63,0.00022768,2]
[313065693,1706710720123,-155.0,0.00022768,2]
[313065694,1706710720143,-286.37391764,0.00022768,2]
[313065695,1706710720164,-155.0,0.00022882,2]
[313065696,1706710720186,-157.63,0.00022885,2]
[313065697,1706710720207,-213.72159227,0.000229,2]
[313065698,1706710720229,-604.97093352,0.000229,2]
[313065699,1706710720250,-721.39319229,0.00022997,2]
[313065700,1706710720272,-411.53450874,0.00022997,2]
[313065701,1706710720291,-177.63285351,0.00022997,2]
[313065702,1706710720314,-234.45621061,0.00022997,2]
[313065703,1706710720335,-2343.28005747,0.00022997,2]
[313065704,1706710720356,-172.37737233,0.00022997,2]
[313065705,1706710720378,-5453.28620354,0.00022997,2]
[313065706,1706710720401,-5601.14427927,0.00022997,2]
[313065721,1706710802984,3198.37181468,0.00021771,2]
[313065722,1706710804015,421.03960501,0.00022075,2]
[313065724,1706710812857,3134.76429599,0.00021544,2]
[313065725,1706710820009,421.03960501,0.00021771,2]
[313065727,1706710824984,3198.37181468,0.00021771,2]
[313065731,1706710839168,953.34405022,0.00022508,2]
[313065732,1706710840095,421.03960501,0.00021768,2]
[313065733,1706710840121,1048.26100712,0.00022508,2]
[313065734,1706710842995,2383.87562246,0.00021768,2]
[313065735,1706710845172,240.82454042,0.00022508,2]
[313065736,1706710846730,2909.36169139,0.00022508,2]
[313065739,1706710852255,1000.0,0.00022508,2]
[313065740,1706710859585,2482.12405516,0.00022508,2]
[313065742,1706710860940,2325.91196662,0.00022508,2]
[313065743,1706710861164,970.53281602,0.00022508,2]
[313065744,1706710863389,1044.13958215,0.00022508,2]
[313065748,1706710868849,3152.92101953,0.00022508,2]
[313065749,1706710870166,2605.00032238,0.00022508,2]
[313065750,1706710871414,150.0,0.00022178,2]
[313065752,1706710873580,2482.12405516,0.00021995,2]
[313065753,1706710877771,166.93,0.00022113,2]
[313065754,1706710879923,1430.60148798,0.00022508,2]
[313065760,1706710895178,2000.0,0.00022053,2]
[313065761,1706710895586,2482.12405516,0.00021995,2]
[313065763,1706710911587,466.060242,0.00021995,2]
[313065766,1706710919700,409.53,0.00022112,2]
[313065767,1706710928056,179.13,0.00021996,10]
[313065773,1706710943350,2623.6,0.00021949,2]
[313065775,1706710958952,3051.43926374,0.00022501,2]
[313065776,1706710964625,3635.02589497,0.00022501,2]
[313065777,1706710970283,953.34405022,0.00022501,2]
[313065778,1706710970688,970.53281602,0.00022501,2]
[313065779,1706710975216,970.53281602,0.00022501,2]
[313065780,1706710978007,4257.98615526,0.00022501,2]
[313065781,1706710978729,5228.78655032,0.00022501,2]
[313065786,1706710989161,1048.26100712,0.00022501,2]
[313065787,1706710991304,1000.0,0.00022501,2]
[313065790,1706710992384,1044.13958215,0.00022501,2]
[313065792,1706710996752,4711.10874324,0.00022501,2]
[313065793,1706710999209,2605.00032238,0.00022501,2]
[313065795,1706711002901,2954.57416026,0.00022501,2]
[313065797,1706711007911,2325.91196662,0.00022501,2]
[313065799,1706711032213,165.20098408,0.00022501,2]
[313065802,1706711041137,3635.02589497,0.00022501,2]
[313065803,1706711041536,150.0,0.00022501,2]
[313065804,1706711041568,300.0,0.00022501,2]
[313065805,1706711043988,251.78372974,0.0002168,2]
[313065808,1706711046734,496.69225016,0.00022501,2]
[313065809,1706711047695,176.76,0.0002168,2]
[313065810,1706711048960,176.76,0.00022228,2]
[313065811,1706711049524,3051.43926374,0.00022501,2]
[313065813,1706711054017,500.0,0.0002168,2]
[313065814,1706711055458,877.27789041,0.00022228,2]
[313065817,1706711065798,1000.0,0.00022501,2]
[313065819,1706711080812,4259.85,0.00022067,2]
[313065822,1706711088708,2605.00032238,0.00022501,2]
[313065823,1706711099729,4170.44695881,0.00022501,2]
[313065827,1706711113677,3635.02589497,0.00022501,2]
[313065830,1706711119318,160.0,0.00022067,2]
[313065832,1706711123217,496.69225016,0.00022501,2]
[313065834,1706711135102,360.0,0.00022132,2]
[313065837,1706711137374,23900.0,0.00022067,2]
[313065838,1706711148385,1243.03,0.00022132,2]
[313065840,1706711165128,1313.64,0.00022076,2]
[313065842,1706711170758,250.0,0.00022069,2]
[313065844,1706711186628,157.63,0.00022174,2]
[313065845,1706711186866,157.63,0.00022367,2]
[313065848,1706711197109,714.56,0.00019982,2]
[313065849,1706711197324,714.56,0.00022246,2]
[313065854,1706711207730,496.69225016,0.00022501,2]
[313065855,1706711215564,250.0,0.000219,2]
[313065858,1706711229243,300.0,0.000222,8]
[313065859,1706711231811,600.0,0.000223,8]
[313065860,1706711233739,500.0,0.0002187,2]
[313065861,1706711233775,900.0,0.000224,8]
[313065862,1706711235880,1300.0,0.000225,8]
[313065863,1706711239425,181.8,0.00021875,2]
[313065864,1706711243756,2573.38,0.00021825,2]
[313065867,1706711256760,500.0,0.00021845,2]
[313065868,1706711256970,500.0,0.000225,2]
[313065872,1706711282233,496.69225016,0.00022501,2]
[313065873,1706711291050,500.0,0.000225,3]
[313065875,1706711300122,499.11245606,0.00022501,2]
[313065880,1706711311752,690.14449221,0.00022501,2]
[313065882,1706711321125,2000.0,0.00021798,2]
[313065887,1706711337230,165.74,0.00021798,2]
[313065889,1706711348391,174.47661243,0.00022492,2]
[313065893,1706711353395,174.47661236,0.00022497,2]
[313065895,1706711378044,204.76,0.00021728,2]
[313065922,1706711434010,-970.53281602,0.00022502,2]
[313065923,1706711434021,-1439.0,0.00022502,2]
[313065924,1706711434031,-174.47661236,0.00022503,2]
[313065925,1706711434040,-174.47661236,0.00022508,2]
[313065926,1706711434050,-174.47661236,0.00022513,2]
[313065927,1706711434059,-174.47661236,0.00022519,2]
[313065928,1706711434068,-174.47661236,0.00022524,2]
[313065929,1706711434078,-174.47661236,0.00022529,2]
[313065930,1706711434087,-174.47661236,0.00022535,2]
[313065931,1706711434096,-174.47661236,0.0002254,2]
[313065932,1706711434106,-174.47661236,0.00022545,2]
[313065933,1706711434115,-174.47661236,0.0002255,2]
[313065934,1706711434125,-174.47661236,0.00022556,2]
[313065935,1706711434134,-157.63,0.0002256,2]
[313065936,1706711434144,-174.47661236,0.00022561,2]
[313065937,1706711434154,-174.47661236,0.00022566,2]
[313065938,1706711434163,-174.47661236,0.00022572,2]
[313065939,1706711434173,-174.47661236,0.00022577,2]
[313065940,1706711434182,-213.72159226,0.00022579,2]
[313065941,1706711434191,-2702.7582291,0.00022585,2]
[313065942,1706711434203,-21707.79644191,0.00022585,2]
[313065943,1706711434213,-310.07296092,0.00022586,6]
[313065944,1706711434222,-213.74736922,0.00022586,2]
[313065945,1706711434230,-1995.01807978,0.00022586,2]
[313065946,1706711434239,-150.0,0.00022591,2]
[313065947,1706711434248,-150.0,0.00022591,2]
[313065948,1706711434258,-300.0,0.00022591,2]
[313065949,1706711434267,-4234.79653422,0.00022593,2]
[313065950,1706711434276,-499.99,0.00022593,2]
[313065951,1706711434286,-8897.67,0.00022593,2]
[313065952,1706711434295,-1600.0,0.000226,8]
[313065953,1706711434304,-546.41,0.000226,2]
[313065954,1706711434313,-350.21,0.000226,2]
[313065955,1706711434323,-1202.89820523,0.000226,2]
[313065956,1706711434336,-779.27224229,0.000226,2]
[313065957,1706711434347,-314.47830538,0.000226,2]
[313065959,1706711434368,-1366.98909176,0.000226,2]
[313065962,1706711434381,-954.99232549,0.000226,2]
[313065964,1706711434391,-474.43698901,0.000226,2]
[313065968,1706711434408,-2304.11621744,0.000226,2]
[313065972,1706711434419,-862.90197581,0.000226,2]
[313065975,1706711434430,-4096.88136756,0.000226,2]
[313065978,1706711434449,-7624.35328003,0.000226,2]
[313065981,1706711434459,-150.0,0.00022666,2]
[313065985,1706711434469,-420.51663594,0.00022667,2]
[313065986,1706711434479,-1666.16,0.00022667,2]
[313065989,1706711434489,-2508.67,0.00022667,2]
[313065991,1706711434498,-2230.55436589,0.00022675,2]
[313065992,1706711434507,-180.14352026,0.00022675,2]
[313065994,1706711434517,-536.16093289,0.00022675,2]
[313065996,1706711434527,-4245.93592104,0.00022675,2]
[313065998,1706711434537,-542.9027259,0.00022675,2]
[313066000,1706711434547,-381.27412161,0.00022675,2]
[313066003,1706711434557,-266.28460412,0.00022675,2]
[313066005,1706711434567,-2325.76709308,0.00022675,2]
[313066007,1706711434579,-2378.10869795,0.00022675,2]
[313066009,1706711434589,-1126.81482205,0.00022675,2]
[313066062,1706711438060,-1355.36077063,0.00022586,2]
[313066063,1706711438073,-728.00893414,0.00022586,2]
[313066064,1706711438082,-383.04749273,0.00022675,2]
[313066065,1706711438093,-98.67054554,0.00022675,2]
[313066066,1706711438105,-288.41386898,0.00022675,2]
[313066074,1706711438333,-1934.91382804,0.00022675,2]
[313066075,1706711438342,-902.39786214,0.00022675,2]
[313066076,1706711438351,-2608.5323688,0.00022675,2]
[313066077,1706711438361,-2605.98445461,0.00022675,2]
[313066078,1706711438370,-734.51324896,0.00022675,2]
[313066079,1706711438382,-232.97455486,0.00022675,2]
[313066080,1706711438391,-155.72510053,0.00022675,2]
[313066081,1706711438401,-17379.65833707,0.00022676,2]
[313066082,1706711438410,-114133.73373646,0.00022677,2]
[313066083,1706711438422,-363.61901928,0.00022677,2]
[313066084,1706711438460,-2036.77752424,0.00022677,2]
[313066085,1706711438471,-45151.9851579,0.00022677,2]
[313066086,1706711438481,-4921.09307492,0.00022678,2]
[313066087,1706711438491,-4638.55770228,0.00022678,2]
[313066088,1706711438500,-385.65675102,0.00022678,2]
[313066089,1706711438510,-165.30239559,0.00022678,2]
[313066090,1706711438520,-1053.13917845,0.00022678,2]
[313066091,1706711438529,-775.90960026,0.00022678,2]
[313066092,1706711438540,-4499.68676317,0.00022678,2]
[313066093,1706711438550,-150.0,0.00022679,2]
[313066094,1706711438559,-150.0,0.00022679,2]
[313066095,1706711438569,-150.0,0.00022679,2]
[313066096,1706711438578,-150.0,0.00022679,2]
[313066097,1706711438588,-150.0,0.00022679,2]
[313066098,1706711438598,-150.0,0.00022679,2]
[313066099,1706711438609,-150.0,0.00022679,2]
[313066100,1706711438620,-150.0,0.00022679,2]
[313066101,1706711438630,-150.0,0.00022679,2]
[313066102,1706711438641,-150.0,0.00022679,2]
[313066103,1706711438651,-150.0,0.00022679,2]
[313066104,1706711438662,-150.0,0.00022679,2]
[313066105,1706711438672,-150.0,0.00022679,2]
[313066106,1706711438682,-150.0,0.00022679,2]
[313066107,1706711438692,-150.0,0.00022679,2]
[313066108,1706711438701,-150.0,0.00022679,2]
[313066109,1706711438711,-150.0,0.00022679,2]
[313066110,1706711438721,-150.0,0.00022679,2]
[313066111,1706711438731,-150.0,0.00022679,2]
[313066112,1706711438740,-150.0,0.00022679,2]
[313066113,1706711438750,-150.0,0.00022679,2]
[313066114,1706711438760,-150.0,0.00022679,2]
[313066115,1706711438769,-150.0,0.00022679,2]
[313066116,1706711438779,-150.0,0.00022679,2]
[313066117,1706711438790,-150.0,0.00022679,2]
[313066118,1706711438800,-150.0,0.00022679,2]
[313066119,1706711438810,-377.63767023,0.00022679,2]
[313066120,1706711438820,-500.0,0.00022679,2]
[313066121,1706711438830,-162.68831345,0.00022679,2]
[313066122,1706711438840,-344.65249296,0.00022679,2]
[313066123,1706711438850,-500.0,0.00022679,2]
[313066124,1706711438859,-500.0,0.00022679,2]
[313066125,1706711438869,-187.14007694,0.00022679,2]
[313066126,1706711438879,-500.0,0.00022679,2]
[313066127,1706711438889,-173.72782943,0.00022679,2]
[313066128,1706711438899,-500.0,0.00022679,2]
[313066129,1706711438909,-284.32728382,0.00022679,2]
[313066130,1706711438918,-500.0,0.00022679,2]
[313066131,1706711438927,-500.0,0.00022679,2]
[313066132,1706711438937,-500.0,0.00022679,2]
[313066133,1706711438947,-500.0,0.00022679,2]
[313066134,1706711438956,-500.0,0.00022679,2]
[313066135,1706711438964,-500.0,0.00022679,2]
[313066136,1706711438974,-500.0,0.00022679,2]
[313066137,1706711439179,-500.0,0.00022679,2]
[313066138,1706711439189,-500.0,0.00022679,2]
[313066139,1706711439198,-500.0,0.00022679,2]
[313066140,1706711439207,-185.96975882,0.00022679,2]
[313066141,1706711439216,-740.55192713,0.0002268,3]
[313066142,1706711439226,-7390741.17675056,0.0002268,2]